bitfinex-derivatives/quotes_ETHF0:USTF0_20241005
["timestamp","ask_amount","ask_price","bid_price","bid_amount"]
[1728133051740,2.7078221,2421.5,2421.4,0.4045]
[1728133051949,2.16772271,2421.6,2421.4,8.08266305]
[1728133052246,2.55272271,2421.7,2421.6,0.28905]
[1728133052444,2.16772271,2421.8,2421.7,0.28903]
[1728133052637,2.16772271,2421.9,2421.7,8.48940868]
[1728133052844,2.16772271,2422.0,2421.8,3.27172868]
[1728133053141,2.16772271,2422.1,2421.9,2.86094979]
[1728133053346,6.16582271,2422.2,2421.9,2.57193979]
[1728133053547,5.78082271,2422.2,2422.0,1.08193979]
[1728133054041,6.06980271,2422.2,2422.0,1.08193979]
[1728133054345,3.6131,2422.2,2421.9,2.57193979]
[1728133054547,0.4053,2422.2,2421.9,2.57193979]
[1728133056244,0.4053,2422.2,2421.9,1.49]
[1728133061452,0.69427,2422.2,2421.9,1.49]
[1728133064253,0.4053,2422.2,2421.9,1.49]
[1728133064555,0.4053,2422.2,2421.9,1.77901]
[1728133065840,0.4053,2422.2,2422.0,0.3878]
[1728133066949,0.3939,2422.3,2422.1,1.49]
[1728133067157,0.8031,2422.3,2422.1,1.49]
[1728133067348,0.385,2422.4,2422.2,10.95415081]
[1728133067549,3.49673,2422.6,2422.3,1.49]
[1728133067749,3.49673,2422.6,2422.4,0.3871]
[1728133068657,3.2078,2422.6,2422.4,0.3871]
[1728133068854,0.28894,2422.5,2422.4,0.3871]
[1728133069154,3.49673,2422.6,2422.4,0.3871]
[1728133071156,0.28893,2422.6,2422.4,0.3871]
[1728133077060,4.68472,2422.7,2422.4,0.3871]
[1728133077446,3.2078,2422.7,2422.5,1.49]
[1728133077649,3.2078,2422.7,2422.6,1.8856]
[1728133078056,3.2078,2422.7,2422.6,0.3956]
[1728133078451,3.6306,2422.7,2422.6,0.3956]
[1728133079060,3.6306,2422.7,2422.5,1.49]
[1728133079061,4.71712,2422.7,2422.5,1.49]
[1728133080462,1.50932,2422.7,2422.5,1.49]
[1728133080662,4.71712,2422.7,2422.5,1.49]
[1728133081155,4.71712,2422.7,2422.4,2.16605]
[1728133081963,4.71712,2422.7,2422.2,3.6034]
[1728133081964,1.49,2422.6,2422.2,3.6034]
[1728133082156,4.71712,2422.7,2422.4,1.77894]
[1728133082357,4.71712,2422.7,2422.5,0.426]
[1728133082760,0.28893,2422.6,2422.5,0.8187]
[1728133083558,4.71712,2422.7,2422.5,0.8187]
[1728133083958,1.2204,2422.7,2422.5,2.3087]
[1728133084262,0.4228,2422.7,2422.6,0.28893]
[1728133084460,0.4228,2422.7,2422.5,2.3087]
[1728133085161,0.4228,2422.7,2422.5,2.59763]
[1728133085766,0.4228,2422.7,2422.5,2.3087]
[1728133085957,1.13092,2422.7,2422.5,1.10764]
[1728133086560,0.842,2422.7,2422.5,1.10764]
[1728133087363,1.13092,2422.7,2422.5,1.10764]
[1728133088874,0.842,2422.7,2422.5,0.8187]
[1728133089068,0.842,2422.7,2422.5,1.10763]
[1728133089272,1.13091,2422.7,2422.5,1.10763]
[1728133091276,0.842,2422.7,2422.6,0.28893]
[1728133096276,0.842,2422.7,2422.6,1.77893]
[1728133101983,1.45825852,2422.8,2422.6,1.77893]
[1728133105185,1.84525852,2422.8,2422.6,1.77893]
[1728133105384,2.13416852,2422.8,2422.6,1.49]
[1728133109084,0.67591,2422.8,2422.6,1.49]
[1728133109991,0.67591,2422.8,2422.6,1.77893]
[1728133110589,0.387,2422.8,2422.6,1.77893]
[1728133111185,2.55472271,2422.8,2422.6,1.77893]
[1728133111585,2.84362271,2422.8,2422.6,1.77893]
[1728133111786,0.6759,2422.8,2422.6,1.77893]
[1728133111991,2.84362271,2422.8,2422.6,1.77893]
[1728133114297,2.84362271,2422.8,2422.6,2.57193979]
[1728133116502,2.84363271,2422.8,2422.6,2.57193979]
[1728133116705,2.84363271,2422.8,2422.6,2.86086979]
[1728133119300,2.16772271,2422.7,2422.6,2.86086979]
[1728133119794,2.84363271,2422.8,2422.6,2.86086979]
[1728133120601,2.16772271,2422.7,2422.6,2.86086979]
[1728133120796,2.16772271,2422.7,2422.6,4.21158585]
[1728133121396,2.16772271,2422.7,2422.6,4.21174782]
[1728133122808,2.16772271,2422.7,2422.6,4.21092589]
[1728133123106,2.16772271,2422.7,2422.6,4.46428678]
[1728133123799,2.16772271,2422.7,2422.6,2.84087803]
[1728133125102,2.16772271,2422.7,2422.6,3.12980803]
[1728133125408,2.16772271,2422.7,2422.6,4.75321678]
[1728133126398,2.16772271,2422.7,2422.6,5.14055574]
[1728133129912,2.45663271,2422.7,2422.6,4.85162574]
[1728133130513,2.16772271,2422.7,2422.6,5.14055574]
[1728133130914,0.28891,2422.7,2422.6,4.85162574]
[1728133131214,0.28891,2422.7,2422.6,5.14067037]
[1728133131215,2.16754247,2422.7,2422.6,5.14067037]
[1728133132413,2.16754247,2422.7,2422.6,3.51726162]
[1728133133321,2.16754247,2422.8,2422.7,0.28891]
[1728133133616,2.16754247,2422.9,2422.8,0.2889]
[1728133133814,2.16754247,2422.9,2422.8,3.65037998]
[1728133134022,2.16754247,2422.9,2422.8,4.05487998]
[1728133135711,2.16754247,2422.9,2422.8,8.18207998]
[1728133135917,2.16754247,2423.0,2422.9,0.28889]
[1728133136114,2.16754247,2423.1,2422.9,8.0897094]
[1728133136318,2.45640247,2423.2,2423.0,2.71868029]
[1728133136514,2.45640247,2423.2,2423.1,1.49]
[1728133136715,2.16754247,2423.2,2423.1,1.8945]
[1728133137119,2.45639247,2423.2,2423.1,2.2936]
[1728133142718,0.28885,2423.2,2423.1,2.2936]
[1728133142922,2.45639247,2423.2,2423.1,2.2936]
[1728133144521,0.28885,2423.2,2423.1,2.2936]
[1728133144917,2.45639247,2423.2,2423.1,2.2936]
[1728133145220,0.28885,2423.2,2423.1,2.2936]
[1728133145820,0.71425,2423.2,2423.1,2.2936]
[1728133148624,0.71425,2423.2,2423.0,1.49]
[1728133149125,0.4254,2423.2,2423.0,1.77888]
[1728133150622,0.4254,2423.2,2422.9,0.4009]
[1728133150832,0.4254,2423.2,2422.9,1.8909]
[1728133150833,0.28887,2423.1,2422.9,1.8909]
[1728133151427,0.28887,2423.1,2422.9,2.17979]
[1728133151726,0.28887,2423.1,2422.9,1.8909]
[1728133152624,2.59294247,2423.2,2422.9,1.8909]
[1728133152840,2.88180247,2423.2,2422.9,2.17979]
[1728133153519,2.88180247,2423.2,2423.0,0.4108]
[1728133154123,2.85519247,2423.3,2423.1,1.49]
[1728133154627,2.85519247,2423.3,2423.2,0.397]
[1728133156326,0.28885,2423.2,2423.1,1.49]
[1728133159735,2.95504247,2423.3,2423.1,1.49]
[1728133159934,3.24389247,2423.3,2423.1,1.49]
[1728133160935,0.28885,2423.2,2423.1,1.49]
[1728133164230,2.45639247,2423.2,2423.1,1.49]
[1728133165636,2.16754247,2423.2,2423.1,1.49]
[1728133167339,1.62227777,2423.2,2423.1,1.49]
[1728133170839,1.91112777,2423.2,2423.1,1.49]
[1728133173551,0.28885,2423.2,2423.1,1.49]
[1728133176655,2.85519247,2423.3,2423.1,1.49]
[1728133176845,2.85519247,2423.3,2423.0,2.1886734]
[1728133176846,2.85519247,2423.3,2423.2,1.49]
[1728133177752,2.85519247,2423.3,2423.2,1.8811]
[1728133178051,0.68765,2423.3,2423.2,1.8811]
[1728133179146,3.3954721,2423.3,2423.2,1.8811]
[1728133179554,0.68765,2423.3,2423.2,1.8811]
[1728133180158,3.3954721,2423.3,2423.2,1.8811]
[1728133180454,0.68765,2423.3,2423.2,1.8811]
[1728133180659,0.3988,2423.3,2423.2,1.8811]
[1728133180860,2.56457627,2423.3,2423.2,2.9611934]
[1728133181154,2.56457627,2423.3,2423.2,4.29797441]
[1728133181155,2.16577627,2423.3,2423.2,4.29797441]
[1728133181656,2.45461627,2423.3,2423.2,2.9611934]
[1728133181863,2.16577627,2423.3,2423.2,8.4243595]
[1728133182262,2.45461627,2423.4,2423.2,8.4243595]
[1728133182458,2.45461627,2423.4,2423.3,0.4032]
[1728133182955,2.45461627,2423.4,2423.3,1.4832934]
[1728133183153,2.16577627,2423.4,2423.3,10.81844]
[1728133183359,2.7078221,2423.5,2423.3,10.81844]
[1728133183360,1.62383614,2423.5,2423.4,0.28883]
[1728133183661,1.62383614,2423.5,2423.4,8.5706108]
[1728133184355,1.62383614,2423.6,2423.4,8.5706108]
[1728133184560,1.62383614,2423.6,2423.5,5.20454503]
[1728133184757,2.86747627,2423.7,2423.5,4.5216]
[1728133184955,2.86747627,2423.7,2423.6,1.49]
[1728133186155,0.7017,2423.7,2423.6,1.49]
[1728133186363,2.86747627,2423.7,2423.6,1.49]
[1728133187562,0.7017,2423.7,2423.6,1.49]
[1728133187760,0.4129,2423.7,2423.6,1.49]
[1728133189252,2.03447466,2423.7,2423.6,1.49]
[1728133189864,0.4129,2423.7,2423.6,1.49]
[1728133190165,2.03426121,2423.7,2423.6,1.49]
[1728133190871,0.4129,2423.7,2423.6,1.49]
[1728133191062,2.03428545,2423.7,2423.6,1.49]
[1728133193060,2.03428545,2423.7,2423.6,1.9011]
[1728133193370,2.03428545,2423.7,2423.6,6.0275]
[1728133194066,0.4129,2423.7,2423.6,1.9011]
[1728133199565,0.7017,2423.7,2423.6,1.9011]
[1728133201768,0.4129,2423.7,2423.6,1.9011]
[1728133203367,0.7017,2423.7,2423.6,1.9011]
[1728133203773,2.32308545,2423.7,2423.6,1.9011]
[1728133204365,0.7017,2423.7,2423.6,1.9011]
[1728133204561,2.32308545,2423.7,2423.6,1.49]
[1728133207366,2.03428545,2423.7,2423.6,1.49]
[1728133212870,0.4129,2423.7,2423.6,1.49]
[1728133214576,2.03393758,2423.7,2423.6,1.49]
[1728133218179,0.4129,2423.7,2423.6,1.49]
[1728133219584,2.03452053,2423.7,2423.6,1.49]
[1728133221180,0.4129,2423.7,2423.6,1.49]
[1728133221671,0.4129,2423.7,2423.6,1.9018]
[1728133221877,2.03492236,2423.7,2423.6,1.9018]
[1728133223290,2.03534387,2423.7,2423.6,1.9018]
[1728133223783,0.4129,2423.7,2423.6,1.9018]
[1728133225180,2.57867627,2423.7,2423.6,1.9018]
[1728133227583,0.4129,2423.7,2423.6,1.9018]
[1728133228580,0.4129,2423.7,2423.6,2.97994503]
[1728133228581,2.5783706,2423.7,2423.6,2.97994503]
[1728133228787,0.4129,2423.7,2423.6,2.97994503]
[1728133230487,0.4129,2423.7,2423.6,3.37774503]
[1728133230679,2.7078221,2423.8,2423.6,3.37774503]
[1728133231087,2.7078221,2423.8,2423.7,0.4071]
[1728133233894,2.7078221,2423.8,2423.7,0.6959]
[1728133234291,2.7078221,2423.9,2423.7,1.77404503]
[1728133234492,2.7078221,2423.9,2423.8,1.49]
[1728133238487,0.4015,2424.0,2423.8,1.49]
[1728133238488,3.1093221,2424.0,2423.8,1.49]
[1728133238692,3.1093221,2424.0,2423.9,0.4024]
[1728133239099,2.7078221,2424.1,2423.9,0.821]
[1728133239306,2.7078221,2424.1,2424.0,1.49]
[1728133239494,0.4205,2424.2,2424.1,0.28875]
[1728133239495,2.16415555,2424.2,2424.1,0.28875]
[1728133239695,2.16415555,2424.2,2424.0,3.26960503]
[1728133239896,1.62309348,2424.1,2424.0,3.26960503]
[1728133240098,1.62307901,2424.1,2424.0,2.98084503]
[1728133240400,2.16415555,2424.2,2424.0,3.26959503]
[1728133240594,1.62261487,2424.1,2424.0,2.19145]
[1728133242498,2.16415555,2424.2,2424.0,2.19145]
[1728133243000,2.16415555,2424.1,2424.0,0.4127]
[1728133243200,2.87260555,2424.1,2424.0,0.4127]
[1728133243395,0.28876,2424.0,2423.8,3.2078]
[1728133243605,1.62202483,2423.9,2423.8,3.2078]
[1728133243813,2.04462483,2423.9,2423.8,3.2078]
[1728133244297,1.62202483,2423.9,2423.8,4.6978]
[1728133244501,1.62202483,2424.0,2423.8,4.98658]
[1728133244709,1.62178989,2424.0,2423.9,0.4081]
[1728133248601,1.62178989,2424.0,2423.8,1.49]
[1728133248797,1.62178989,2423.9,2423.8,1.49]
[1728133249604,2.31114989,2424.0,2423.8,1.49]
[1728133250107,2.31114989,2424.0,2423.8,1.77878]
[1728133250404,0.28878,2423.8,2423.7,1.07814503]
[1728133250605,0.28878,2423.8,2423.6,1.49]
[1728133250606,0.2888,2423.7,2423.6,1.49]
[1728133250809,2.75663852,2423.7,2423.6,1.49]
[1728133251310,2.46783852,2423.7,2423.6,1.49]
[1728133252713,2.86533852,2423.7,2423.6,1.49]
[1728133259615,1.2438,2423.7,2423.6,1.49]
[1728133260122,2.86554115,2423.7,2423.6,1.49]
[1728133260721,1.2438,2423.7,2423.6,1.49]
[1728133260920,2.86553287,2423.7,2423.6,1.49]
[1728133261217,1.2438,2423.7,2423.6,1.49]
[1728133261418,5.3702,2423.7,2423.3,4.28594503]
[1728133261623,1.62176017,2423.6,2423.3,4.28594503]
[1728133261919,1.62176017,2423.6,2423.5,1.77882]
[1728133262423,1.62176017,2423.6,2423.5,1.9171]
[1728133264126,1.62176017,2423.6,2423.5,2.20592]
[1728133264422,1.62176017,2423.6,2423.5,1.9171]
[1728133264423,1.91057017,2423.6,2423.5,1.9171]
[1728133265122,1.62176017,2423.6,2423.5,2.20592]
[1728133265818,1.62176017,2423.6,2423.3,4.28594503]
[1728133266020,1.91058017,2423.5,2423.3,3.89554]
[1728133266217,1.91058017,2423.5,2423.4,1.49]
[1728133266523,1.62176017,2423.5,2423.4,1.77883]
[1728133266720,1.91058017,2423.5,2423.4,1.49]
[1728133267520,1.62176017,2423.5,2423.4,5.90523]
[1728133267715,2.04836017,2423.7,2423.4,5.6164]
[1728133267924,2.04836017,2423.7,2423.6,1.49]
[1728133268120,2.04836017,2423.7,2423.6,1.77881]
[1728133268427,2.04836017,2423.7,2423.6,2.57641]
[1728133269223,2.04836017,2423.7,2423.6,2.2876]
[1728133270316,2.33716017,2423.7,2423.6,2.2876]
[1728133270517,2.04836017,2423.7,2423.5,1.49]
[1728133270729,0.28882,2423.5,2423.4,1.49]
[1728133271413,2.45152068,2423.5,2423.4,1.49]
[1728133272728,0.28884,2423.3,2423.2,2.3197]
[1728133272922,1.91009029,2423.3,2423.2,2.3197]
[1728133273328,2.30369029,2423.3,2423.2,2.3197]
[1728133274526,2.01485029,2423.3,2423.2,2.3197]
[1728133275333,0.3936,2423.3,2423.2,2.3197]
[1728133283439,0.68244,2423.3,2423.2,2.3197]
[1728133284139,0.28884,2423.3,2423.2,2.3197]
[1728133285036,2.03965029,2423.5,2423.2,2.3197]
[1728133285234,0.28884,2423.4,2423.2,0.8297]
[1728133285434,0.28884,2423.4,2423.3,1.49]
[1728133290045,2.03965029,2423.5,2423.2,1.2263]
[1728133290242,3.11125029,2423.4,2423.0,4.6978]
[1728133290441,0.28885,2423.2,2423.0,5.0858]
[1728133290649,0.28887,2423.1,2423.0,5.0858]
[1728133291342,0.28886,2423.2,2423.0,5.0858]
[1728133293034,0.28886,2423.2,2423.0,3.5958]
[1728133293035,0.28885,2423.2,2423.0,3.5958]
[1728133293248,1.91010029,2423.2,2423.0,5.0858]
[1728133294151,1.91010029,2423.2,2423.0,1.878]
[1728133295452,0.28887,2423.1,2423.0,1.878]
[1728133295651,0.70657,2423.1,2423.0,1.878]
[1728133308451,2.32782029,2423.1,2423.0,1.878]
[1728133311765,2.03895029,2423.1,2423.0,1.878]
[1728133314258,2.32782029,2423.1,2423.0,1.878]
[1728133314557,0.70657,2423.1,2423.0,1.878]
[1728133315063,0.70657,2423.1,2423.0,0.388]
[1728133316559,2.86927068,2423.1,2423.0,0.388]
[1728133318456,4.35927068,2423.1,2423.0,0.388]
[1728133318653,4.35927068,2423.1,2422.8,1.50524503]
[1728133318654,0.28889,2422.9,2422.8,1.50524503]
[1728133318952,2.4538886,2422.9,2422.8,0.4271]
[1728133319154,0.28891,2422.7,2422.6,1.46834503]
[1728133319355,3.94407216,2422.7,2422.6,0.7773]
[1728133319557,1.77891,2422.7,2422.6,0.7773]
[1728133319762,2.19361,2422.7,2422.6,0.7773]
[1728133319969,0.28891,2422.7,2422.6,0.7773]
[1728133320460,4.8818321,2422.8,2422.6,0.7773]
[1728133321467,2.45246386,2422.7,2422.6,0.7773]
[1728133321661,2.16355386,2422.7,2422.6,0.7773]
[1728133322559,2.17401,2422.8,2422.6,0.7773]
[1728133322560,4.33756386,2422.8,2422.6,0.7773]
[1728133323572,1.62191428,2422.7,2422.6,0.7773]
[1728133327567,1.91082428,2422.7,2422.6,0.7773]
[1728133331774,1.62191428,2422.7,2422.6,0.7773]
[1728133333072,3.79591428,2422.8,2422.6,0.7773]
[1728133333480,1.62191428,2422.7,2422.6,0.7773]
[1728133334371,3.11191428,2422.7,2422.6,0.7773]
[1728133334676,3.40082428,2422.7,2422.6,0.7773]
[1728133334869,0.28894,2422.6,2422.3,3.49676]
[1728133335171,0.28894,2422.5,2422.4,0.8227]
[1728133336278,0.4206,2422.6,2422.4,0.8227]
[1728133336472,0.70953,2422.6,2422.4,0.8227]
[1728133338171,0.4206,2422.6,2422.4,0.8227]
[1728133338878,0.70953,2422.6,2422.4,0.8227]
[1728133339877,0.28894,2422.5,2422.4,0.8227]
[1728133340472,0.28895,2422.4,2422.3,3.2078]
[1728133340681,1.77895,2422.4,2422.3,3.2078]
[1728133340977,7.52886428,2422.4,2422.3,3.2078]
[1728133341175,7.52886428,2422.4,2421.9,0.3991]
[1728133341176,0.28899,2422.1,2421.9,0.3991]
[1728133341372,0.28899,2422.1,2421.9,0.7884]
[1728133341677,0.7904,2422.0,2421.9,0.7884]
[1728133341982,3.79639532,2422.3,2422.0,0.28899]
[1728133342181,4.58679532,2422.3,2422.0,0.28899]
[1728133342381,4.29782532,2422.3,2421.9,2.2784]
[1728133342678,0.28898,2422.2,2421.9,2.5674]
[1728133344275,2.677,2422.3,2421.9,2.5674]
[1728133344472,0.28899,2422.1,2421.9,2.5674]
[1728133349080,0.28899,2422.1,2421.9,2.2784]
[1728133349882,0.28899,2422.1,2421.9,2.56741]
[1728133351181,0.28899,2422.1,2421.9,2.2784]
[1728133351380,0.28899,2422.1,2421.9,2.56741]
[1728133352379,0.28899,2422.1,2421.9,2.2784]
[1728133353191,0.28899,2422.1,2421.9,2.56741]
[1728133353478,2.677,2422.3,2421.9,2.2784]
[1728133353687,0.289,2422.1,2421.9,2.2784]
[1728133356281,0.289,2422.1,2421.9,2.5674]
[1728133358084,0.28899,2422.1,2421.9,2.5674]
[1728133359085,2.677,2422.3,2421.9,2.5674]
[1728133359289,0.28899,2422.1,2421.9,2.5674]
[1728133361787,0.28898,2422.2,2421.9,2.5674]
[1728133362488,0.28899,2422.1,2421.9,2.2784]
[1728133363291,0.28899,2422.1,2421.9,2.56741]
[1728133363784,0.28899,2422.1,2421.9,2.2784]
[1728133364086,0.28899,2422.1,2421.9,2.56741]
[1728133364789,0.28899,2422.1,2421.9,2.2784]
[1728133368992,1.90981532,2422.2,2421.9,2.56741]
[1728133369391,0.28899,2422.1,2421.9,2.56741]
[1728133369784,0.28899,2422.1,2421.9,2.2784]
[1728133370089,0.28899,2422.1,2421.9,2.56741]
[1728133370590,0.28899,2422.1,2421.9,2.2784]
[1728133372192,0.28899,2422.1,2421.9,2.56741]
[1728133372584,1.77899,2422.1,2421.9,0.7884]
[1728133374689,1.77899,2422.1,2421.9,1.07741]
[1728133374994,1.77899,2422.1,2421.9,0.7884]
[1728133377093,3.39981532,2422.1,2421.9,0.7884]
[1728133379200,3.39981532,2422.1,2421.9,1.86654503]
[1728133379597,0.289,2422.0,2421.9,1.86654503]
[1728133379792,1.1411,2422.0,2421.9,0.7884]
[1728133379994,2.76192532,2422.0,2421.9,0.7884]
[1728133382615,1.1411,2422.0,2421.9,0.7884]
[1728133383099,2.7649591,2422.0,2421.9,0.7884]
[1728133383705,1.1411,2422.0,2421.9,0.7884]
[1728133384007,2.6311,2422.0,2421.9,0.7884]
[1728133384598,2.6311,2422.0,2421.9,1.86654503]
[1728133384799,2.6311,2422.0,2421.9,0.7884]
[1728133385103,2.3421,2422.0,2421.9,0.7884]
[1728133385398,0.8521,2422.0,2421.9,1.86654503]
[1728133386605,0.8521,2422.0,2421.9,3.72664957]
[1728133386606,2.59055386,2422.0,2421.9,3.72664957]
[1728133387402,2.59055386,2422.0,2421.9,3.72662696]
[1728133392314,2.59055386,2422.0,2421.9,3.72680994]
[1728133394609,0.716,2422.0,2421.9,3.72680994]
[1728133394913,0.427,2422.0,2421.9,3.72680994]
[1728133401817,0.427,2422.0,2421.9,3.72668173]
[1728133403318,4.36955386,2422.0,2421.9,3.72668173]
[1728133406620,4.36955386,2422.0,2421.9,3.72677326]
[1728133407818,4.08055386,2422.0,2421.9,3.72677326]
[1728133408713,4.36955386,2422.0,2421.9,2.40095416]
[1728133409316,2.206,2422.0,2421.9,1.08049117]
[1728133409514,2.206,2422.0,2421.8,1.50879117]
[1728133409515,0.28901,2421.9,2421.8,1.50879117]
[1728133409815,1.8811,2421.9,2421.8,1.50879117]
[1728133410316,1.8811,2421.9,2421.8,1.08049117]
[1728133410509,1.8811,2421.9,2421.7,1.79512117]
[1728133410715,2.16721445,2421.8,2421.7,0.71463]
[1728133410914,2.16721445,2421.8,2421.7,2.03519271]
[1728133411219,2.16721445,2421.8,2421.7,2.03519369]
[1728133411407,4.04831445,2421.9,2421.7,3.115626]
[1728133411612,4.04831445,2421.9,2421.7,1.79506215]
[1728133411613,2.16721445,2421.8,2421.7,1.79506215]
[1728133411810,2.16721445,2421.8,2421.7,3.11552132]
[1728133412311,2.16721445,2421.8,2421.7,1.79506215]
[1728133412917,4.04831445,2421.9,2421.7,3.11537569]
[1728133413117,4.04831445,2421.9,2421.7,1.79506215]
[1728133413825,2.16721445,2421.8,2421.7,1.79506215]
[1728133414426,4.33732445,2421.9,2421.7,1.79506215]
[1728133415425,1.62464648,2421.8,2421.7,1.50603215]
[1728133415719,4.33732445,2421.9,2421.7,1.50603215]
[1728133416122,2.16721445,2421.8,2421.7,1.50603215]
[1728133416420,2.16721445,2421.8,2421.7,0.71463]
[1728133417322,2.17011,2421.9,2421.7,0.71463]
[1728133417323,4.33732445,2421.9,2421.7,0.71463]
[1728133418927,4.04831445,2421.9,2421.7,0.71463]
[1728133419625,4.33732445,2421.9,2421.7,0.71463]
[1728133420022,4.04831445,2421.9,2421.7,0.71463]
[1728133420925,4.04831445,2421.9,2421.7,0.4256]
[1728133421125,4.04831445,2421.9,2421.8,0.28902]
[1728133421424,4.04831445,2421.9,2421.7,0.71463]
[1728133421725,1.62416799,2421.8,2421.7,0.71463]
[1728133422126,1.62417862,2421.8,2421.7,0.71463]
[1728133422429,4.04831445,2421.9,2421.7,0.71463]
[1728133423424,1.62414548,2421.8,2421.7,0.71463]
[1728133426437,1.62411206,2421.8,2421.7,0.71463]
[1728133426629,4.33732445,2421.9,2421.7,0.71463]
[1728133427031,4.04831445,2421.9,2421.7,0.71463]
[1728133427532,4.04831445,2421.9,2421.8,0.3886]
[1728133428632,4.04831445,2421.9,2421.8,0.67762]
[1728133428837,4.04831445,2421.9,2421.8,0.3886]
[1728133429836,4.04831445,2421.9,2421.8,0.67762]
[1728133431230,4.04831445,2421.9,2421.7,0.71463]
[1728133431437,1.62391221,2421.8,2421.7,0.71463]
[1728133437836,0.28902,2421.8,2421.7,0.4256]
[1728133438048,4.33733445,2421.9,2421.7,0.71463]
[1728133438340,2.16721445,2421.8,2421.7,0.71463]
[1728133439639,2.45623445,2421.8,2421.7,0.71463]
[1728133439945,2.16721445,2421.8,2421.7,0.71463]
[1728133451669,2.16642996,2421.8,2421.7,0.71463]
[1728133451859,2.16642996,2421.8,2421.7,0.28903]
[1728133452063,4.8779421,2421.9,2421.7,0.28903]
[1728133452362,0.28902,2421.8,2421.7,0.28903]
[1728133452564,4.8779421,2421.9,2421.7,0.28903]
[1728133453065,4.8779421,2421.9,2421.6,1.78057215]
[1728133453066,0.28903,2421.8,2421.6,1.78057215]
[1728133453253,3.65665114,2421.7,2421.6,1.78057215]
[1728133453457,4.05485114,2421.7,2421.6,1.78057215]
[1728133454058,4.05485114,2421.7,2421.6,1.49153215]
[1728133454265,4.05485114,2421.7,2421.6,1.78058215]
[1728133455467,4.05485114,2421.7,2421.6,1.49153215]
[1728133455668,4.34388114,2421.7,2421.6,1.78058215]
[1728133458675,4.34388114,2421.7,2421.6,1.49153215]
[1728133466979,2.17723,2421.7,2421.6,0.4111]
[1728133467977,2.60283,2421.7,2421.6,0.4111]
[1728133472683,0.28905,2421.6,2421.5,4.28823215]
[1728133472884,0.28905,2421.6,2421.5,3.2078]
[1728133473380,0.28905,2421.6,2421.5,4.28823215]
[1728133473587,0.28905,2421.6,2421.5,3.2078]
[1728133474272,2.45616755,2421.6,2421.5,3.2078]
[1728133474671,0.28905,2421.6,2421.5,3.2078]
[1728133475079,1.77905,2421.6,2421.5,3.2078]
[1728133475480,1.49,2421.6,2421.5,3.2078]
[1728133475680,3.65695716,2421.6,2421.5,3.2078]
[1728133476183,3.65695716,2421.6,2421.5,4.28823215]
[1728133476383,3.94600716,2421.6,2421.5,4.28823215]
[1728133476577,3.94600716,2421.6,2421.5,3.2078]
[1728133476888,1.77905,2421.6,2421.5,3.2078]
[1728133477182,2.16693931,2421.6,2421.5,3.92056]
[1728133477377,3.65693931,2421.6,2421.5,3.6315]
[1728133478273,3.94598931,2421.6,2421.5,3.6315]
[1728133480783,3.94598931,2421.6,2421.5,4.71193215]
[1728133481087,3.94598931,2421.6,2421.5,3.6315]
[1728133481386,3.94598931,2421.6,2421.5,4.71193215]
[1728133481680,3.94598931,2421.6,2421.5,3.6315]
[1728133483585,3.94598931,2421.6,2421.5,0.4237]
[1728133483891,3.94598931,2421.6,2421.5,3.6315]
[1728133484285,3.94598931,2421.6,2421.5,0.4237]
[1728133484690,3.94598931,2421.6,2421.5,4.71193215]
[1728133485087,3.94598931,2421.6,2421.5,3.6315]
[1728133485692,3.94598931,2421.6,2421.5,0.4237]
[1728133486292,3.94598931,2421.6,2421.5,3.6315]
[1728133486791,3.94598931,2421.6,2421.5,4.71193215]
[1728133487095,3.94598931,2421.6,2421.5,3.6315]
[1728133487997,3.94598931,2421.6,2421.5,0.4237]
[1728133488583,3.94598931,2421.6,2421.5,3.6315]
[1728133488786,3.94598931,2421.6,2421.5,4.71193215]
[1728133489186,3.94598931,2421.6,2421.5,3.6315]
[1728133489700,3.94598931,2421.6,2421.5,0.4237]
[1728133490498,3.94598931,2421.6,2421.5,3.6315]
[1728133491093,3.94598931,2421.6,2421.5,0.4237]
[1728133491094,1.77905,2421.6,2421.5,0.4237]
[1728133491395,1.77905,2421.6,2421.5,3.6315]
[1728133491597,3.94606028,2421.6,2421.5,3.6315]
[1728133492099,3.94606028,2421.6,2421.5,3.2078]
[1728133492297,4.34486028,2421.6,2421.5,3.2078]
[1728133493390,4.34486028,2421.6,2421.4,1.77499215]
[1728133493591,4.34486028,2421.6,2421.5,3.2078]
[1728133494490,4.34486028,2421.6,2421.5,4.28823215]
[1728133494892,4.34486028,2421.6,2421.5,3.2078]
[1728133495299,4.34486028,2421.6,2421.4,1.77499215]
[1728133495493,2.16701028,2421.5,2421.4,1.77499215]
[1728133495696,2.16701028,2421.5,2421.4,3.09687971]
[1728133495902,2.16701028,2421.5,2421.4,6.30467971]
[1728133496196,2.16701028,2421.5,2421.4,1.77499215]
[1728133496401,2.16701028,2421.5,2421.4,6.30477891]
[1728133496595,2.16701028,2421.5,2421.4,5.22434676]
[1728133497195,2.17785,2421.6,2421.4,6.84225703]
[1728133497196,4.34486028,2421.6,2421.4,6.84225703]
[1728133497396,4.34486028,2421.6,2421.5,1.08183796]
[1728133497596,2.17785,2421.6,2421.5,1.08183796]
[1728133498199,2.17785,2421.6,2421.5,4.28963796]
[1728133498392,2.17785,2421.6,2421.5,1.08183796]
[1728133498804,4.34508837,2421.6,2421.5,1.08183796]
[1728133499706,2.17785,2421.6,2421.5,1.08183796]
[1728133501201,1.8888,2421.6,2421.5,1.08183796]
[1728133501800,2.17785,2421.6,2421.4,1.37089796]
[1728133502104,2.17785,2421.6,2421.5,0.4056]
[1728133502309,1.8888,2421.6,2421.4,1.48523796]
[1728133502606,2.45643664,2421.5,2421.4,1.48523796]
[1728133502807,2.45643664,2421.5,2421.4,2.80777649]
[1728133503203,2.45643664,2421.5,2421.4,2.40437649]
[1728133503500,0.28908,2421.3,2421.2,1.08183796]
[1728133503701,2.45670638,2421.3,2421.2,1.08183796]
[1728133504097,0.70238,2421.3,2421.2,1.08183796]